[Event "***Titled Tuesday 3|2 Blitz"]
[Site "Chess.com"]
[Date "2017.02.07"]
[Round "2"]
[White "Andrejkin"]
[Black "ChristopherYoo"]
[Result "1-0"]
[WhiteElo "2182"]
[BlackElo "2080"]
[TimeControl "180+2"]
[EndTime "13:27:09 PST"]
[Termination "Andrejkin won by resignation"]

1. e4 {[%clk 0:03:00]} 1... e5 {[%clk 0:02:59.8]} 2. Nf3 {[%clk 0:02:59.6]} 2...
Nc6 {[%clk 0:02:58.2]} 3. Bc4 {[%clk 0:02:59.6]} 3... Bc5 {[%clk 0:02:56.1]} 4.
c3 {[%clk 0:02:59.8]} 4... Nf6 {[%clk 0:02:48.9]} 5. d4 {[%clk 0:03:00.7]} 5...
exd4 {[%clk 0:02:46.6]} 6. cxd4 {[%clk 0:03:02.6]} 6... Bb4+ {[%clk 0:02:47.2]}
7. Bd2 {[%clk 0:03:03.9]} 7... Nxe4 {[%clk 0:02:47.8]} 8. Bxb4 {[%clk
0:03:04.7]} 8... Nxb4 {[%clk 0:02:48.9]} 9. Bxf7+ {[%clk 0:03:06.6]} 9... Kxf7
{[%clk 0:02:49.9]} 10. Qb3+ {[%clk 0:03:08.5]} 10... d5 {[%clk 0:02:51.2]} 11.
Qxb4 {[%clk 0:03:10.3]} 11... Rf8 {[%clk 0:02:51.6]} 12. Nc3 {[%clk 0:03:01.8]}
12... Kg8 {[%clk 0:02:48.8]} 13. Nxe4 {[%clk 0:02:59.1]} 13... dxe4 {[%clk
0:02:47.4]} 14. Qc4+ {[%clk 0:02:59.2]} 14... Kh8 {[%clk 0:02:47.7]} 15. Ne5
{[%clk 0:03:00.5]} 15... Qf6 {[%clk 0:02:23.5]} 16. O-O {[%clk 0:03:00.2]} 16...
c6 {[%clk 0:02:20.1]} 17. Qb4 {[%clk 0:02:55.6]} 17... Rb8 {[%clk 0:01:42.9]}
18. Nxc6 {[%clk 0:02:48.5]} 18... bxc6 {[%clk 0:01:32.7]} 19. Qxb8 {[%clk
0:02:46.3]} 19... Ba6 {[%clk 0:01:33.3]} 20. Qe5 {[%clk 0:02:26.9]} 20... Bxf1
{[%clk 0:01:15]} 21. Qxf6 {[%clk 0:02:17.4]} 21... gxf6 {[%clk 0:01:12.7]} 22.
Kxf1 {[%clk 0:02:19.3]} 22... Rd8 {[%clk 0:01:11.3]} 23. Rd1 {[%clk 0:02:03.2]}
23... f5 {[%clk 0:01:11]} 24. Ke2 {[%clk 0:02:03.8]} 24... Kg7 {[%clk
0:01:11.1]} 25. Ke3 {[%clk 0:02:04.4]} 25... Kf6 {[%clk 0:01:08.4]} 26. Rc1
{[%clk 0:02:05]} 26... Rd6 {[%clk 0:01:04.5]} 27. b4 {[%clk 0:01:57.6]} 27...
Kg5 {[%clk 0:00:37.2]} 28. g3 {[%clk 0:01:50.4]} 28... Kg4 {[%clk 0:00:33.9]}
29. h4 {[%clk 0:01:51.1]} 29... Rf6 {[%clk 0:00:22.8]} 30. Rc5 {[%clk
0:01:29.7]} 30... h6 {[%clk 0:00:19]} 31. Rc3 {[%clk 0:01:12.6]} 31... f4+
{[%clk 0:00:16.4]} 32. Kxe4 {[%clk 0:01:14.5]} 32... Re6+ {[%clk 0:00:17.1]} 33.
Kd3 {[%clk 0:01:13.2]} 33... fxg3 {[%clk 0:00:16.9]} 34. fxg3 {[%clk 0:01:15.1]}
34... Kxg3 {[%clk 0:00:17.4]} 35. Kc4+ {[%clk 0:01:11.8]} 35... Kxh4 {[%clk
0:00:18.2]} 36. Kc5 {[%clk 0:01:13.1]} 36... Kg4 {[%clk 0:00:18.7]} 37. b5
{[%clk 0:01:14.6]} 37... cxb5 {[%clk 0:00:18.7]} 38. d5 {[%clk 0:01:16]} 38...
Re1 {[%clk 0:00:14.7]} 39. d6 {[%clk 0:01:07.4]} 39... Rd1 {[%clk 0:00:15.1]}
40. Kc6 {[%clk 0:01:08.8]} 40... h5 {[%clk 0:00:16.1]} 41. Kc7 {[%clk
0:01:09.7]} 41... h4 {[%clk 0:00:16.7]} 42. d7 {[%clk 0:01:10.4]} 42... h3
{[%clk 0:00:16.8]} 43. d8=Q {[%clk 0:01:06.7]} 43... Rxd8 {[%clk 0:00:17]} 44.
Kxd8 {[%clk 0:01:08.6]} 44... b4 {[%clk 0:00:17.8]} 45. Rc4+ {[%clk 0:00:59.6]}
45... Kg3 {[%clk 0:00:18.5]} 46. Rxb4 {[%clk 0:01:01.5]} 46... h2 {[%clk
0:00:19.3]} 47. Rb1 {[%clk 0:00:57.3]} 47... Kg2 {[%clk 0:00:19.7]} 48. Kc7
{[%clk 0:00:45.1]} 48... h1=Q {[%clk 0:00:18.6]} 49. Rxh1 {[%clk 0:00:40.4]}
49... Kxh1 {[%clk 0:00:19.5]} 50. a4 {[%clk 0:00:42.3]} 50... a5 {[%clk
0:00:16.9]} 51. Kb6 {[%clk 0:00:43.5]} 51... Kg2 {[%clk 0:00:18.2]} 52. Kxa5
{[%clk 0:00:44.7]} 52... Kf3 {[%clk 0:00:19.5]} 53. Kb6 {[%clk 0:00:45.9]} 53...
Ke4 {[%clk 0:00:20.3]} 54. a5 {[%clk 0:00:46.2]} 54... Kd5 {[%clk 0:00:20.9]}
55. a6 {[%clk 0:00:48]} 55... Kd6 {[%clk 0:00:20.6]} 56. Kb7 {[%clk 0:00:49.9]}
1-0

[Event "***Titled Tuesday 3|2 Blitz"]
[Site "Chess.com"]
[Date "2017.02.07"]
[Round "2"]
[White "DrVelja"]
[Black "Evgeny_Levin"]
[Result "0-1"]
[WhiteElo "2515"]
[BlackElo "2758"]
[TimeControl "180+2"]
[EndTime "13:27:20 PST"]
[Termination "Evgeny_Levin won by resignation"]

1. e4 {[%clk 0:03:02]} 1... c5 {[%clk 0:02:59]} 2. Nf3 {[%clk 0:02:56.2]} 2...
d6 {[%clk 0:02:59.7]} 3. d4 {[%clk 0:02:55.9]} 3... cxd4 {[%clk 0:03:00.2]} 4.
Nxd4 {[%clk 0:02:57.3]} 4... Nf6 {[%clk 0:03:01.5]} 5. Nc3 {[%clk 0:02:58.6]}
5... a6 {[%clk 0:03:02]} 6. Bc4 {[%clk 0:02:59]} 6... e6 {[%clk 0:03:02.1]} 7.
Bb3 {[%clk 0:03:00.3]} 7... b5 {[%clk 0:03:01.8]} 8. Bg5 {[%clk 0:03:00.4]} 8...
Be7 {[%clk 0:02:43.1]} 9. Qf3 {[%clk 0:02:58.3]} 9... Bb7 {[%clk 0:01:59.7]} 10.
Bxe6 {[%clk 0:02:22.6]} 10... Qb6 {[%clk 0:01:59.4]} 11. Nf5 {[%clk 0:01:25]}
11... fxe6 {[%clk 0:01:55.6]} 12. Nxg7+ {[%clk 0:01:25.1]} 12... Kf7 {[%clk
0:01:55]} 13. Bxf6 {[%clk 0:01:21.9]} 13... Bxf6 {[%clk 0:01:56.9]} 14. Nh5
{[%clk 0:01:23.1]} 14... Nd7 {[%clk 0:01:58.1]} 15. O-O-O {[%clk 0:01:23.2]}
15... Ke7 {[%clk 0:01:47.4]} 16. Nxf6 {[%clk 0:01:17.3]} 16... Nxf6 {[%clk
0:01:47.2]} 17. Rhe1 {[%clk 0:01:16.8]} 17... Raf8 {[%clk 0:01:40.1]} 18. Kb1
{[%clk 0:01:13.6]} 18... Rhg8 {[%clk 0:01:26.6]} 19. Qh3 {[%clk 0:01:07.2]}
19... b4 {[%clk 0:01:25.9]} 20. Ne2 {[%clk 0:00:17.2]} 20... Qxf2 {[%clk
0:01:25.3]} 21. Nd4 {[%clk 0:00:13.8]} 21... Rg4 {[%clk 0:01:12.5]} 22. Rf1
{[%clk 0:00:09.6]} 22... Qxg2 {[%clk 0:01:06.3]} 23. Qb3 {[%clk 0:00:10.8]}
23... Rxe4 {[%clk 0:00:49.9]} 24. Qxb4 {[%clk 0:00:07.3]} 24... Rxd4 {[%clk
0:00:48]} 25. Qxd4 {[%clk 0:00:06]} 25... Qc6 {[%clk 0:00:45.9]} 26. Rg1 {[%clk
0:00:06.3]} 26... Rf7 {[%clk 0:00:44.6]} 27. Rdf1 {[%clk 0:00:06.7]} 27... e5
{[%clk 0:00:45.4]} 28. Qh4 {[%clk 0:00:07.6]} 28... Qe4 {[%clk 0:00:44]} 29. Qh6
{[%clk 0:00:05.6]} 29... Qc4 {[%clk 0:00:33.1]} 30. b3 {[%clk 0:00:04.3]} 30...
Qe6 {[%clk 0:00:32.7]} 31. Rg7 {[%clk 0:00:05.7]} 31... Be4 {[%clk 0:00:29]} 32.
Rxf7+ {[%clk 0:00:05.5]} 32... Kxf7 {[%clk 0:00:29.2]} 33. Kb2 {[%clk
0:00:06.9]} 33... Bg6 {[%clk 0:00:28.1]} 34. Qg5 {[%clk 0:00:04.8]} 34... d5
{[%clk 0:00:25.9]} 35. h4 {[%clk 0:00:06]} 35... d4 {[%clk 0:00:23.2]} 36. h5
{[%clk 0:00:06.7]} 36... Be4 {[%clk 0:00:23.9]} 37. Rg1 {[%clk 0:00:07.9]} 37...
Ke7 {[%clk 0:00:21.1]} 38. Qg7+ {[%clk 0:00:08.3]} 38... Qf7 {[%clk 0:00:21.8]}
39. Qh6 {[%clk 0:00:07.8]} 39... Ke6 {[%clk 0:00:15.1]} 40. Rg7 {[%clk
0:00:06.5]} 40... Qxh5 {[%clk 0:00:15.8]} 41. Qd2 {[%clk 0:00:04.4]} 41... Qf3
{[%clk 0:00:14.5]} 42. Qb4 {[%clk 0:00:03.9]} 42... Qc3+ {[%clk 0:00:14.9]} 43.
Qxc3 {[%clk 0:00:05.5]} 43... dxc3+ {[%clk 0:00:16.3]} 44. Kxc3 {[%clk
0:00:07.4]} 44... h5 {[%clk 0:00:17]} 45. Kd2 {[%clk 0:00:07.3]} 45... h4 {[%clk
0:00:16.6]} 46. Ke3 {[%clk 0:00:06.2]} 46... h3 {[%clk 0:00:17.6]} 47. Rg3
{[%clk 0:00:07.6]} 47... h2 {[%clk 0:00:18.1]} 48. Rh3 {[%clk 0:00:09.1]} 48...
h1=Q {[%clk 0:00:18.8]} 0-1

[Event "***Titled Tuesday 3|2 Blitz"]
[Site "Chess.com"]
[Date "2017.02.07"]
[Round "2"]
[White "twitchTriniCupid"]
[Black "ER404"]
[Result "0-1"]
[WhiteElo "2109"]
[BlackElo "2160"]
[TimeControl "180+2"]
[EndTime "13:27:34 PST"]
[Termination "ER404 won by resignation"]

1. Nf3 {[%clk 0:03:02]} 1... Nf6 {[%clk 0:03:00.6]} 2. g3 {[%clk 0:02:59.5]}
2... g6 {[%clk 0:03:00.6]} 3. Bg2 {[%clk 0:03:00.9]} 3... Bg7 {[%clk 0:03:02.2]}
4. d4 {[%clk 0:02:57.7]} 4... O-O {[%clk 0:03:03.3]} 5. O-O {[%clk 0:02:57.8]}
5... c5 {[%clk 0:03:01.5]} 6. d5 {[%clk 0:02:58.3]} 6... e6 {[%clk 0:03:02.5]}
7. c4 {[%clk 0:02:58.4]} 7... exd5 {[%clk 0:03:03.7]} 8. cxd5 {[%clk 0:02:59.9]}
8... d6 {[%clk 0:03:05.6]} 9. a4 {[%clk 0:03:00.9]} 9... Re8 {[%clk 0:02:55.4]}
10. Nc3 {[%clk 0:02:56.4]} 10... a6 {[%clk 0:02:53.6]} 11. Nd2 {[%clk
0:02:55.8]} 11... Nbd7 {[%clk 0:02:53.6]} 12. a5 {[%clk 0:02:56.1]} 12... b5
{[%clk 0:02:53.6]} 13. axb6 {[%clk 0:02:56.9]} 13... Nxb6 {[%clk 0:02:54.9]} 14.
e4 {[%clk 0:02:58.2]} 14... Ng4 {[%clk 0:02:45.5]} 15. Nb3 {[%clk 0:02:46.1]}
15... Ne5 {[%clk 0:02:41.2]} 16. Na5 {[%clk 0:02:44.9]} 16... Nbc4 {[%clk
0:02:35.2]} 17. Nxc4 {[%clk 0:02:06.9]} 17... Nxc4 {[%clk 0:02:37.1]} 18. Qc2
{[%clk 0:02:05.8]} 18... f5 {[%clk 0:02:12.5]} 19. b3 {[%clk 0:02:01.4]} 19...
Nb6 {[%clk 0:02:09.1]} 20. f3 {[%clk 0:01:46.7]} 20... c4 {[%clk 0:01:51.9]} 21.
Be3 {[%clk 0:01:34.6]} 21... Rb8 {[%clk 0:01:50.8]} 22. Ne2 {[%clk 0:01:28.4]}
22... Nxd5 {[%clk 0:01:30.1]} 23. Qxc4 {[%clk 0:01:22.1]} 23... Bxa1 {[%clk
0:01:16.8]} 24. Rxa1 {[%clk 0:01:20.5]} 24... Be6 {[%clk 0:01:01.5]} 25. exd5
{[%clk 0:01:20.7]} 25... Bf7 {[%clk 0:01:03.1]} 26. Bf2 {[%clk 0:01:17.7]} 26...
Qf6 {[%clk 0:00:59.1]} 27. Nd4 {[%clk 0:01:12.2]} 27... Rbc8 {[%clk 0:00:58.3]}
28. Qxa6 {[%clk 0:01:05.8]} 28... Bxd5 {[%clk 0:00:58.3]} 29. Rd1 {[%clk
0:00:54.4]} 29... f4 {[%clk 0:00:54.4]} 30. Qa5 {[%clk 0:00:54.2]} 30... Bf7
{[%clk 0:00:40.7]} 31. b4 {[%clk 0:00:48.1]} 31... Ra8 {[%clk 0:00:35.2]} 32.
Qc7 {[%clk 0:00:43.8]} 32... Ra2 {[%clk 0:00:33.1]} 33. Bf1 {[%clk 0:00:32.5]}
33... fxg3 {[%clk 0:00:18.5]} 34. hxg3 {[%clk 0:00:33]} 34... d5 {[%clk
0:00:13.9]} 35. Qc6 {[%clk 0:00:32]} 35... Qe5 {[%clk 0:00:07.2]} 36. Kg2 {[%clk
0:00:14.1]} 36... Qb8 {[%clk 0:00:05.7]} 37. b5 {[%clk 0:00:14.6]} 37... Rc8
{[%clk 0:00:06.8]} 38. Qd7 {[%clk 0:00:14.6]} 38... Rd8 {[%clk 0:00:07.6]} 39.
Qg4 {[%clk 0:00:15.2]} 39... Re8 {[%clk 0:00:06.4]} 40. Qf4 {[%clk 0:00:13.9]}
40... Qb6 {[%clk 0:00:06.6]} 41. g4 {[%clk 0:00:09.6]} 41... Rf8 {[%clk
0:00:07]} 42. Qe3 {[%clk 0:00:10.1]} 42... Re8 {[%clk 0:00:07.8]} 43. Qc3 {[%clk
0:00:10.5]} 43... Rea8 {[%clk 0:00:06.7]} 44. Qb4 {[%clk 0:00:10.8]} 44... R8a4
{[%clk 0:00:07.5]} 45. Qd6 {[%clk 0:00:10.9]} 45... Qxd6 {[%clk 0:00:07.4]} 46.
Nc6 {[%clk 0:00:11.6]} 46... Qc5 {[%clk 0:00:06.7]} 47. Be2 {[%clk 0:00:11.1]}
47... Rxe2 {[%clk 0:00:07.1]} 48. Rf1 {[%clk 0:00:12.5]} 48... Raa2 {[%clk
0:00:08]} 49. Ne5 {[%clk 0:00:13.2]} 49... Rxe5 {[%clk 0:00:08.2]} 50. Kg3
{[%clk 0:00:13.2]} 50... Rxf2 {[%clk 0:00:09.5]} 51. Rxf2 {[%clk 0:00:15.1]}
51... Qxb5 {[%clk 0:00:11]} 52. f4 {[%clk 0:00:16.1]} 52... Re2 {[%clk
0:00:12.1]} 53. Rf3 {[%clk 0:00:16.7]} 53... d4 {[%clk 0:00:13.6]} 54. f5 {[%clk
0:00:17.7]} 54... Re3 {[%clk 0:00:14.8]} 0-1

[Event "***Titled Tuesday 3|2 Blitz"]
[Site "Chess.com"]
[Date "2017.02.07"]
[Round "2"]
[White "bilelou"]
[Black "stepanosinovsky"]
[Result "0-1"]
[WhiteElo "2349"]
[BlackElo "2250"]
[TimeControl "180+2"]
[EndTime "13:27:40 PST"]
[Termination "stepanosinovsky won on time"]

1. e4 {[%clk 0:03:02]} 1... e5 {[%clk 0:02:55.5]} 2. Nf3 {[%clk 0:02:53.4]} 2...
Nc6 {[%clk 0:02:55.6]} 3. c3 {[%clk 0:02:52.1]} 3... Nf6 {[%clk 0:02:49.8]} 4.
d4 {[%clk 0:02:50.6]} 4... d6 {[%clk 0:02:50.5]} 5. Bd3 {[%clk 0:02:42]} 5... g6
{[%clk 0:02:47]} 6. O-O {[%clk 0:02:39.1]} 6... Bg7 {[%clk 0:02:47.7]} 7. Re1
{[%clk 0:02:36.4]} 7... O-O {[%clk 0:02:48.4]} 8. h3 {[%clk 0:02:30.5]} 8... Nh5
{[%clk 0:02:45]} 9. d5 {[%clk 0:02:26.2]} 9... Nb8 {[%clk 0:02:31.5]} 10. c4
{[%clk 0:02:24.3]} 10... Nd7 {[%clk 0:02:21.5]} 11. Nc3 {[%clk 0:02:24.8]} 11...
Nc5 {[%clk 0:02:20.1]} 12. Bc2 {[%clk 0:02:18.6]} 12... a5 {[%clk 0:02:19.5]}
13. Be3 {[%clk 0:02:15.5]} 13... Nf4 {[%clk 0:02:12.2]} 14. Qd2 {[%clk
0:02:12.1]} 14... Qf6 {[%clk 0:02:10.7]} 15. Bxf4 {[%clk 0:02:12.1]} 15... exf4
{[%clk 0:02:08.7]} 16. e5 {[%clk 0:02:13.2]} 16... dxe5 {[%clk 0:02:06.8]} 17.
Rxe5 {[%clk 0:02:14.1]} 17... Qb6 {[%clk 0:02:02.2]} 18. Nb5 {[%clk 0:02:06.2]}
18... c6 {[%clk 0:01:41.8]} 19. Nd6 {[%clk 0:01:47.4]} 19... Bxe5 {[%clk
0:00:58.5]} 20. Nxe5 {[%clk 0:01:47.7]} 20... cxd5 {[%clk 0:00:59.3]} 21. Re1
{[%clk 0:01:49.2]} 21... Qxd6 {[%clk 0:00:58.3]} 22. cxd5 {[%clk 0:01:49]} 22...
Bd7 {[%clk 0:00:55.3]} 23. Qxf4 {[%clk 0:01:47.3]} 23... Rae8 {[%clk 0:00:54.3]}
24. Re3 {[%clk 0:01:33.9]} 24... f5 {[%clk 0:00:30.6]} 25. Qd4 {[%clk
0:01:31.5]} 25... f4 {[%clk 0:00:27.3]} 26. Re1 {[%clk 0:01:28.3]} 26... Bf5
{[%clk 0:00:26.7]} 27. Bb3 {[%clk 0:01:27.8]} 27... Re7 {[%clk 0:00:21.9]} 28.
Nf3 {[%clk 0:01:09.4]} 28... Rxe1+ {[%clk 0:00:21]} 29. Nxe1 {[%clk 0:01:10.9]}
29... Nxb3 {[%clk 0:00:21.4]} 30. axb3 {[%clk 0:01:11.9]} 30... Rd8 {[%clk
0:00:22.3]} 31. Nf3 {[%clk 0:01:12.8]} 31... b6 {[%clk 0:00:18.1]} 32. h4 {[%clk
0:01:13.1]} 32... Qxd5 {[%clk 0:00:19.1]} 33. Qf6 {[%clk 0:01:13.1]} 33... Qd6
{[%clk 0:00:18.7]} 34. Qg5 {[%clk 0:01:14.3]} 34... Rd7 {[%clk 0:00:18.7]} 35.
h5 {[%clk 0:01:15.2]} 35... Qe7 {[%clk 0:00:19.3]} 36. Qxf4 {[%clk 0:01:12.9]}
36... Rd1+ {[%clk 0:00:19.6]} 37. Kh2 {[%clk 0:01:13.1]} 37... Qd6 {[%clk
0:00:21.1]} 38. Ne5 {[%clk 0:01:14.6]} 38... Rd5 {[%clk 0:00:18.6]} 39. Qc4
{[%clk 0:01:01.4]} 39... Qxe5+ {[%clk 0:00:18.8]} 40. f4 {[%clk 0:01:02.8]}
40... Qd6 {[%clk 0:00:15.6]} 41. h6 {[%clk 0:01:02.5]} 41... Be6 {[%clk
0:00:13]} 42. Qe4 {[%clk 0:01:01.2]} 42... Rh5+ {[%clk 0:00:10.7]} 43. Kg3
{[%clk 0:01:02.1]} 43... Rg5+ {[%clk 0:00:09.5]} 0-1

[Event "***Titled Tuesday 3|2 Blitz"]
[Site "Chess.com"]
[Date "2017.02.07"]
[Round "2"]
[White "Alexander_Moskalenko"]
[Black "oskariot"]
[Result "1-0"]
[WhiteElo "2692"]
[BlackElo "2530"]
[TimeControl "180+2"]
[EndTime "13:27:49 PST"]
[Termination "Alexander_Moskalenko won by resignation"]

1. e4 {[%clk 0:01:45.7]} 1... c5 {[%clk 0:03:00.5]} 2. Nf3 {[%clk 0:01:46.7]}
2... d6 {[%clk 0:03:01.2]} 3. d3 {[%clk 0:01:46.8]} 3... Nc6 {[%clk 0:03:02]} 4.
g3 {[%clk 0:01:47.4]} 4... g6 {[%clk 0:03:03.5]} 5. Bg2 {[%clk 0:01:48.8]} 5...
Bg7 {[%clk 0:03:05.2]} 6. O-O {[%clk 0:01:50.5]} 6... e5 {[%clk 0:03:06.9]} 7.
Nc3 {[%clk 0:01:51.5]} 7... Nge7 {[%clk 0:03:08.6]} 8. a4 {[%clk 0:01:52.9]}
8... O-O {[%clk 0:03:09.8]} 9. Nd2 {[%clk 0:01:54]} 9... Be6 {[%clk 0:03:03.9]}
10. Nc4 {[%clk 0:01:54.3]} 10... d5 {[%clk 0:03:01.1]} 11. exd5 {[%clk
0:01:55.1]} 11... Nxd5 {[%clk 0:03:02.3]} 12. Ne4 {[%clk 0:01:54.6]} 12... b6
{[%clk 0:02:56.3]} 13. Ng5 {[%clk 0:01:50.3]} 13... Bf5 {[%clk 0:02:33.5]} 14.
Be4 {[%clk 0:01:49.1]} 14... Bxe4 {[%clk 0:02:21.9]} 15. dxe4 {[%clk 0:01:51]}
15... Ndb4 {[%clk 0:02:22.9]} 16. c3 {[%clk 0:01:45.4]} 16... Nd3 {[%clk
0:01:53.7]} 17. Nf3 {[%clk 0:01:30.6]} 17... f5 {[%clk 0:01:43.8]} 18. Qe2
{[%clk 0:01:31.6]} 18... Nxc1 {[%clk 0:01:09.7]} 19. Raxc1 {[%clk 0:01:33.5]}
19... fxe4 {[%clk 0:01:06.5]} 20. Nfd2 {[%clk 0:01:26.9]} 20... Qe8 {[%clk
0:00:53.4]} 21. Nxe4 {[%clk 0:01:25.6]} 21... Rd8 {[%clk 0:00:53.6]} 22. Rcd1
{[%clk 0:01:26.4]} 22... Qe6 {[%clk 0:00:54.5]} 23. Ne3 {[%clk 0:01:22.1]} 23...
Na5 {[%clk 0:00:51.6]} 24. h4 {[%clk 0:01:10.9]} 24... c4 {[%clk 0:00:43.5]} 25.
Rxd8 {[%clk 0:01:04.8]} 25... Rxd8 {[%clk 0:00:44.2]} 26. Rd1 {[%clk 0:01:06.7]}
26... Rxd1+ {[%clk 0:00:32.9]} 27. Qxd1 {[%clk 0:01:08.6]} 27... h6 {[%clk
0:00:34.3]} 28. Qd8+ {[%clk 0:01:04.6]} 28... Kh7 {[%clk 0:00:35.4]} 29. Qc7
{[%clk 0:01:05.7]} 29... a6 {[%clk 0:00:27.1]} 30. Nd5 {[%clk 0:00:59]} 30...
Kh8 {[%clk 0:00:19.6]} 31. Nxb6 {[%clk 0:00:26]} 31... Qf5 {[%clk 0:00:20.8]}
32. Qc8+ {[%clk 0:00:22.6]} 32... Kh7 {[%clk 0:00:21.4]} 33. Qxf5 {[%clk
0:00:23.3]} 33... gxf5 {[%clk 0:00:23.3]} 34. Nd6 {[%clk 0:00:25.2]} 34... Kg6
{[%clk 0:00:21]} 35. Nbxc4 {[%clk 0:00:25.9]} 35... Nb3 {[%clk 0:00:22.1]} 36.
Kf1 {[%clk 0:00:20.4]} 36... e4 {[%clk 0:00:23.1]} 37. Ke2 {[%clk 0:00:21.2]}
37... Bf8 {[%clk 0:00:24.4]} 38. f3 {[%clk 0:00:19]} 38... Nc5 {[%clk 0:00:19]}
39. fxe4 {[%clk 0:00:18.4]} 39... fxe4 {[%clk 0:00:19.4]} 40. b4 {[%clk
0:00:19]} 40... Nxa4 {[%clk 0:00:20.6]} 41. Nxe4 {[%clk 0:00:20.3]} 41... Kf5
{[%clk 0:00:21.8]} 42. Kf3 {[%clk 0:00:21.7]} 42... h5 {[%clk 0:00:22.8]} 43.
Ne3+ {[%clk 0:00:23]} 43... Ke5 {[%clk 0:00:24]} 44. Nc4+ {[%clk 0:00:23.8]}
44... Kd5 {[%clk 0:00:21.7]} 45. Ne3+ {[%clk 0:00:24.4]} 45... Ke5 {[%clk
0:00:22.6]} 46. g4 {[%clk 0:00:26.3]} 46... hxg4+ {[%clk 0:00:19.4]} 47. Nxg4+
{[%clk 0:00:28.2]} 47... Kf5 {[%clk 0:00:20.6]} 48. h5 {[%clk 0:00:29.6]} 48...
Nb2 {[%clk 0:00:08.2]} 49. Ne3+ {[%clk 0:00:28.5]} 49... Ke5 {[%clk 0:00:08.6]}
50. h6 {[%clk 0:00:30]} 50... Nd3 {[%clk 0:00:08.4]} 51. Ng4+ {[%clk 0:00:29.2]}
51... Kf5 {[%clk 0:00:09.5]} 52. h7 {[%clk 0:00:30.7]} 52... Bg7 {[%clk
0:00:10.8]} 53. Nc5 {[%clk 0:00:20.7]} 53... Nxc5 {[%clk 0:00:09.1]} 54. bxc5
{[%clk 0:00:21.5]} 54... Kg6 {[%clk 0:00:10.4]} 55. c6 {[%clk 0:00:21.8]} 1-0

[Event "***Titled Tuesday 3|2 Blitz"]
[Site "Chess.com"]
[Date "2017.02.07"]
[Round "2"]
[White "DryCounty"]
[Black "sergiochess83"]
[Result "0-1"]
[WhiteElo "2392"]
[BlackElo "2719"]
[TimeControl "180+2"]
[EndTime "13:28:14 PST"]
[Termination "sergiochess83 won by resignation"]

1. Nf3 {[%clk 0:03:02]} 1... d5 {[%clk 0:02:49.5]} 2. c4 {[%clk 0:03:00]} 2...
d4 {[%clk 0:02:50.3]} 3. g3 {[%clk 0:02:59.1]} 3... Nc6 {[%clk 0:02:49.5]} 4.
Bg2 {[%clk 0:02:59.4]} 4... e5 {[%clk 0:02:50.7]} 5. d3 {[%clk 0:02:58.4]} 5...
Bd6 {[%clk 0:02:51.5]} 6. O-O {[%clk 0:02:58.9]} 6... Nge7 {[%clk 0:02:49]} 7.
Na3 {[%clk 0:02:41.4]} 7... O-O {[%clk 0:02:48.1]} 8. Nc2 {[%clk 0:02:40.1]}
8... a5 {[%clk 0:02:47]} 9. e3 {[%clk 0:02:38.5]} 9... dxe3 {[%clk 0:02:45.9]}
10. Bxe3 {[%clk 0:02:25.9]} 10... Nf5 {[%clk 0:02:45.9]} 11. Re1 {[%clk
0:02:09.8]} 11... h6 {[%clk 0:02:40.5]} 12. Bd2 {[%clk 0:02:00]} 12... Re8
{[%clk 0:02:38.7]} 13. Bc3 {[%clk 0:01:59.5]} 13... Bd7 {[%clk 0:02:27.6]} 14.
d4 {[%clk 0:01:52.5]} 14... exd4 {[%clk 0:02:14.7]} 15. Rxe8+ {[%clk 0:01:51.3]}
15... Bxe8 {[%clk 0:02:05.5]} 16. Ncxd4 {[%clk 0:01:49.5]} 16... Nfe7 {[%clk
0:01:33.3]} 17. Nb5 {[%clk 0:01:46.6]} 17... Nf5 {[%clk 0:01:28.3]} 18. Nxd6
{[%clk 0:01:45.4]} 18... Nxd6 {[%clk 0:01:28.8]} 19. Qe2 {[%clk 0:01:38.3]}
19... Qe7 {[%clk 0:01:23.8]} 20. Qxe7 {[%clk 0:01:37.1]} 20... Nxe7 {[%clk
0:01:25.7]} 21. b3 {[%clk 0:01:31.3]} 21... Bc6 {[%clk 0:01:26.4]} 22. Re1
{[%clk 0:01:18.7]} 22... Ng6 {[%clk 0:01:13.3]} 23. h4 {[%clk 0:01:16.4]} 23...
a4 {[%clk 0:01:13.6]} 24. h5 {[%clk 0:01:10.2]} 24... Nf8 {[%clk 0:01:14.5]} 25.
Nd4 {[%clk 0:01:00.6]} 25... Bxg2 {[%clk 0:01:13.4]} 26. Kxg2 {[%clk 0:01:01.6]}
26... axb3 {[%clk 0:01:14.7]} 27. axb3 {[%clk 0:01:02.2]} 27... c5 {[%clk
0:01:15.5]} 28. Nc2 {[%clk 0:00:58.5]} 28... Ne6 {[%clk 0:01:15.5]} 29. Ne3
{[%clk 0:00:55.5]} 29... Ra3 {[%clk 0:01:11.8]} 30. Rb1 {[%clk 0:00:55.4]} 30...
Ne4 {[%clk 0:01:10.3]} 31. Be1 {[%clk 0:00:33.7]} 31... Nf6 {[%clk 0:01:11]} 32.
g4 {[%clk 0:00:31.4]} 32... Nf4+ {[%clk 0:01:05.9]} 33. Kf3 {[%clk 0:00:28.8]}
33... Nd3 {[%clk 0:01:07.8]} 34. Bc3 {[%clk 0:00:27.1]} 34... Nd7 {[%clk
0:00:58.7]} 35. Nf5 {[%clk 0:00:26.3]} 35... f6 {[%clk 0:00:58]} 36. Nd6 {[%clk
0:00:19.8]} 36... b6 {[%clk 0:00:48.4]} 37. Ke3 {[%clk 0:00:20.3]} 37... N3e5
{[%clk 0:00:48.6]} 38. f3 {[%clk 0:00:20.1]} 38... Ra2 {[%clk 0:00:42.7]} 39.
Rb2 {[%clk 0:00:21]} 39... Ra1 {[%clk 0:00:42.8]} 40. Rd2 {[%clk 0:00:19.9]}
40... Re1+ {[%clk 0:00:41.6]} 41. Kf2 {[%clk 0:00:20.2]} 41... Rc1 {[%clk
0:00:42]} 42. Bxe5 {[%clk 0:00:19.7]} 42... Nxe5 {[%clk 0:00:42.7]} 43. Nc8
{[%clk 0:00:21]} 43... Rc3 {[%clk 0:00:41.8]} 44. Nxb6 {[%clk 0:00:21.7]} 44...
Rxf3+ {[%clk 0:00:42.4]} 45. Kg2 {[%clk 0:00:21.4]} 45... Rxb3 {[%clk
0:00:44.3]} 46. Rd8+ {[%clk 0:00:21.9]} 46... Kh7 {[%clk 0:00:42.7]} 47. Nd7
{[%clk 0:00:22.3]} 47... Nxd7 {[%clk 0:00:41.8]} 48. Rxd7 {[%clk 0:00:23.4]}
48... Rc3 {[%clk 0:00:43.7]} 49. Rc7 {[%clk 0:00:23.4]} 49... Rxc4 {[%clk
0:00:44.9]} 50. Kg3 {[%clk 0:00:24.9]} 50... Rc1 {[%clk 0:00:44.8]} 51. Rc8
{[%clk 0:00:25.3]} 51... c4 {[%clk 0:00:38.7]} 52. Kg2 {[%clk 0:00:26.3]} 52...
c3 {[%clk 0:00:36.6]} 53. Kh2 {[%clk 0:00:27.4]} 53... g5 {[%clk 0:00:36.2]} 54.
Rc7+ {[%clk 0:00:27.5]} 54... Kg8 {[%clk 0:00:37.1]} 55. Kg2 {[%clk 0:00:28.7]}
55... Kf8 {[%clk 0:00:32.1]} 56. Kf2 {[%clk 0:00:26.3]} 56... c2 {[%clk
0:00:33.4]} 57. Kg2 {[%clk 0:00:27.1]} 57... Ke8 {[%clk 0:00:34]} 58. Rc8+
{[%clk 0:00:27.9]} 58... Kd7 {[%clk 0:00:35]} 59. Rc5 {[%clk 0:00:28.2]} 59...
Kd6 {[%clk 0:00:35.7]} 60. Rc8 {[%clk 0:00:29.2]} 60... Ke5 {[%clk 0:00:36.4]}
61. Rc4 {[%clk 0:00:29.7]} 61... Kd5 {[%clk 0:00:37.3]} 62. Rc8 {[%clk
0:00:29.2]} 62... Ke4 {[%clk 0:00:39.2]} 63. Rc4+ {[%clk 0:00:29.7]} 63... Ke3
{[%clk 0:00:40.2]} 64. Rc8 {[%clk 0:00:30.5]} 64... Re1 {[%clk 0:00:36.8]} 65.
Re8+ {[%clk 0:00:17.4]} 65... Kd2 {[%clk 0:00:37.6]} 66. Rd8+ {[%clk 0:00:18.5]}
66... Kc3 {[%clk 0:00:38.5]} 67. Rc8+ {[%clk 0:00:18.8]} 67... Kb3 {[%clk
0:00:39.1]} 68. Rb8+ {[%clk 0:00:19.9]} 68... Ka4 {[%clk 0:00:39.9]} 69. Ra8+
{[%clk 0:00:20.6]} 69... Kb5 {[%clk 0:00:41.1]} 0-1